bitfinex/quotes_BTCUSD_20250523
["timestamp","ask_amount","ask_price","bid_price","bid_amount"]
[1747978964430,0.06846716,110690.0,110680.0,6.40790371]
[1747978965788,0.07750099,110690.0,110680.0,6.40790371]
[1747978966097,0.07750099,110690.0,110680.0,5.77186371]
[1747978966312,0.08653498,110690.0,110680.0,6.40742371]
[1747978966660,0.07750099,110690.0,110680.0,6.40742371]
[1747978970919,0.06846716,110690.0,110680.0,6.40742371]
[1747978971095,0.06846716,110690.0,110680.0,6.22006371]
[1747978971463,0.07750099,110690.0,110680.0,6.22006371]
[1747978971663,0.07750099,110690.0,110680.0,6.1913921]
[1747978972312,0.06846716,110690.0,110680.0,6.1913921]
[1747978972550,0.07750091,110690.0,110680.0,6.1913921]
[1747978972973,0.07750091,110690.0,110680.0,5.703832]
[1747978972974,0.24915285,110690.0,110680.0,5.703832]
[1747978973178,0.07750229,110690.0,110680.0,6.18235762]
[1747978973757,0.07750229,110690.0,110680.0,6.19139218]
[1747978976831,0.07750229,110690.0,110680.0,6.20042666]
[1747978976979,0.07750164,110690.0,110680.0,6.20042666]
[1747978977184,0.08653579,110690.0,110680.0,6.20042666]
[1747978979675,0.07750164,110690.0,110680.0,6.20042666]
[1747978982267,0.07750164,110690.0,110680.0,5.92970666]
[1747978982482,0.07750164,110690.0,110680.0,6.20042666]
[1747978982718,0.24915309,110690.0,110680.0,5.338992]
[1747978982922,0.24915309,110690.0,110680.0,6.16428809]
[1747978983120,0.0684683,110690.0,110680.0,6.18235746]
[1747978985135,0.0684683,110690.0,110680.0,6.19139194]
[1747978986147,0.0684683,110690.0,110680.0,5.91163746]
[1747978986354,0.0684683,110690.0,110680.0,6.18235746]
[1747978989888,0.24915309,110690.0,110680.0,3.38055609]
[1747978990095,0.24915309,110690.0,110680.0,3.33955002]
[1747978990382,0.24915309,110690.0,110680.0,3.53832084]
[1747978990546,0.24915309,110690.0,110680.0,3.54735556]
[1747978990753,0.0684683,110690.0,110680.0,3.54735499]
[1747978992882,0.0684683,110690.0,110680.0,2.91179499]
[1747978993170,0.24915309,110690.0,110680.0,3.52928579]
[1747978993375,0.24915309,110690.0,110680.0,3.53832035]
[1747978993608,0.24915309,110690.0,110680.0,3.52928579]
[1747978993826,0.24011902,110690.0,110680.0,0.85676]
[1747978994030,0.24011902,110690.0,110680.0,1.46748]
[1747978994450,0.24011902,110690.0,110680.0,1.19676]
[1747978994648,0.24011902,110690.0,110680.0,1.46748]
[1747978995246,0.24011902,110690.0,110680.0,1.12748]
[1747978997527,0.24011902,110690.0,110680.0,1.14189505]
[1747978999000,0.24011902,110690.0,110680.0,1.12748]
[1747978999199,0.25211902,110690.0,110680.0,1.12748]
[1747979002638,0.08950189,110690.0,110680.0,1.33528554]
[1747979002837,0.27018668,110690.0,110680.0,1.31721617]
[1747979003067,0.26115293,110690.0,110680.0,1.32625114]
[1747979004457,0.25211894,110690.0,110680.0,1.32625114]
[1747979006846,0.25211894,110690.0,110680.0,1.34432067]
[1747979007416,0.25211894,110690.0,110680.0,1.34432084]
[1747979007668,0.23625285,110690.0,110680.0,5.8604274]
[1747979007912,0.02243366,110690.0,110680.0,5.86042683]
[1747979008144,0.03146749,110690.0,110680.0,5.86042683]
[1747979008366,0.04050148,110690.0,110680.0,5.86042683]
[1747979008822,0.03146749,110690.0,110680.0,5.86042683]
[1747979009249,0.04050148,110690.0,110680.0,5.88909844]
[1747979009708,0.02243366,110690.0,110680.0,5.88909844]
[1747979009926,0.02243366,110690.0,110680.0,5.91419844]
[1747979010353,0.04050148,110690.0,110680.0,5.91419844]
[1747979010529,0.0405014,110690.0,110680.0,5.88909844]
[1747979010680,0.03146757,110690.0,110680.0,5.88909844]
[1747979010883,0.01946749,110690.0,110680.0,5.88909844]
[1747979012321,0.01043366,110690.0,110680.0,5.88909844]
[1747979012632,0.01043358,110690.0,110680.0,5.88909844]
[1747979013263,0.01946733,110690.0,110680.0,6.22909844]
[1747979014206,0.01043358,110690.0,110680.0,6.22909844]
[1747979014507,0.0014,110690.0,110680.0,6.22909844]
[1747979014713,0.0014,110690.0,110680.0,6.367344]
[1747979014856,0.0014,110690.0,110680.0,6.394432]
[1747979016996,0.0014,110690.0,110680.0,6.372432]
[1747979024042,0.0124398,110700.0,110690.0,0.54778651]
[1747979024203,30.026,110710.0,110700.0,0.20776775]
[1747979024406,30.03503195,110710.0,110700.0,5.34967975]
[1747979024865,30.03503195,110710.0,110700.0,5.37676275]
[1747979025038,30.05963195,110710.0,110700.0,5.37676275]
[1747979025618,30.06866406,110710.0,110700.0,5.37676275]
[1747979026025,30.07969634,110710.0,110700.0,5.37676275]
[1747979026228,30.08872878,110710.0,110700.0,5.37668275]
[1747979027481,30.09072878,110710.0,110700.0,5.71668275]
[1747979027905,30.0907287,110710.0,110700.0,5.71668275]
[1747979028283,30.07266406,110710.0,110700.0,5.71668275]
[1747979028597,30.08169634,110710.0,110700.0,5.71668275]
[1747979030641,30.09072878,110710.0,110700.0,5.71668275]
[1747979032884,30.0997613,110710.0,110700.0,5.71668275]
[1747979033388,30.09072878,110710.0,110700.0,5.71596275]
[1747979033553,30.08169634,110710.0,110700.0,5.71596275]
[1747979033723,30.07266406,110710.0,110700.0,5.71596275]
[1747979033925,30.08169634,110710.0,110700.0,5.68887975]
[1747979035110,30.0546,110710.0,110700.0,5.68887975]
[1747979035333,30.06363187,110710.0,110700.0,5.68887975]
[1747979035539,30.0726639,110710.0,110700.0,5.68887975]
[1747979035735,30.0546,110710.0,110700.0,5.68887975]
[1747979036105,30.06363203,110710.0,110700.0,5.68887975]
[1747979036330,30.0546,110710.0,110700.0,5.68887975]
[1747979036534,30.06363195,110710.0,110700.0,5.68887975]
[1747979037407,30.0546,110710.0,110700.0,5.68887975]
[1747979037995,30.06363203,110710.0,110700.0,5.68887975]
[1747979038584,30.0546,110710.0,110700.0,5.68887975]
[1747979039158,30.03,110710.0,110700.0,6.07863975]
[1747979039365,30.03,110710.0,110700.0,6.16818531]
[1747979040821,30.03903187,110710.0,110700.0,6.16818531]
[1747979041051,30.03,110710.0,110700.0,6.16818531]
[1747979041890,30.03903195,110710.0,110700.0,6.16818531]
[1747979042026,30.06553195,110710.0,110700.0,6.16818531]
[1747979042878,30.0565,110710.0,110700.0,6.16818531]
[1747979043541,30.06553195,110710.0,110700.0,6.16818531]
[1747979044568,30.06553195,110710.0,110700.0,6.19526631]
[1747979044696,30.06521895,110710.0,110700.0,6.19526631]
[1747979048338,30.06521895,110710.0,110700.0,5.98749856]
[1747979048696,30.056187,110710.0,110700.0,6.19526631]
[1747979048935,30.06521895,110710.0,110700.0,6.19526631]
[1747979049507,30.056187,110710.0,110700.0,6.19526631]
[1747979049711,30.06521895,110710.0,110700.0,6.19526631]
[1747979049913,30.06521895,110710.0,110700.0,6.16225631]
[1747979050115,30.06521895,110710.0,110700.0,6.13517531]
[1747979050526,30.06521903,110710.0,110700.0,6.13517531]
[1747979051456,30.06521895,110710.0,110700.0,6.13517531]
[1747979053653,30.056187,110710.0,110700.0,6.13517531]
[1747979054266,30.06521895,110710.0,110700.0,6.13517531]
[1747979054670,30.06521887,110710.0,110700.0,6.13517531]
[1747979054890,30.07425082,110710.0,110700.0,6.13517531]
[1747979055314,30.06521887,110710.0,110700.0,6.13517531]
[1747979056606,30.056187,110710.0,110700.0,6.13517531]
[1747979056847,30.06521887,110710.0,110700.0,6.13517531]
[1747979057197,30.056187,110710.0,110700.0,6.13517531]
[1747979057396,30.029687,110710.0,110700.0,6.13517531]
[1747979058005,30.03871887,110710.0,110700.0,6.13517531]
[1747979058157,30.029687,110710.0,110700.0,6.13517531]
[1747979059551,30.055587,110710.0,110700.0,6.13517531]
[1747979059874,30.055587,110710.0,110700.0,6.16225731]
[1747979060406,30.055587,110710.0,110700.0,6.19092892]
[1747979060639,30.029687,110710.0,110700.0,6.19092892]
[1747979061846,30.053587,110710.0,110700.0,6.19092892]
[1747979062008,30.053587,110710.0,110700.0,6.19024892]
[1747979062206,30.051587,110710.0,110700.0,6.19024892]
[1747979062409,30.025687,110710.0,110700.0,6.19024892]
[1747979062611,30.026687,110710.0,110700.0,6.19024892]
[1747979063591,30.026687,110710.0,110700.0,5.91956892]
[1747979063748,30.052587,110710.0,110700.0,6.19024892]
[1747979065247,30.052587,110710.0,110700.0,6.19020892]
[1747979071146,30.052587,110710.0,110700.0,6.16153731]
[1747979071573,30.052587,110710.0,110700.0,6.1903959]
[1747979072605,30.026687,110710.0,110700.0,6.1903959]
[1747979073101,30.052787,110710.0,110700.0,6.1903959]
[1747979073511,30.052787,110710.0,110700.0,5.8503959]
[1747979074040,30.052787,110710.0,110700.0,5.18821731]
[1747979074245,30.052787,110710.0,110700.0,5.82153731]
[1747979075370,30.052787,110710.0,110700.0,6.16153731]
[1747979076083,30.05287934,110710.0,110700.0,6.16153731]
[1747979078675,30.05287934,110710.0,110700.0,5.230904]
[1747979078905,0.25005269,110690.0,110680.0,0.55465183]
[1747979079140,0.32220602,110690.0,110680.0,1.18797183]
[1747979079367,0.41175158,110690.0,110680.0,0.55465183]
[1747979079633,0.41175158,110690.0,110680.0,1.18797183]
[1747979080067,0.33959825,110690.0,110680.0,1.12304]
[1747979080304,0.33959825,110690.0,110680.0,1.12604]
[1747979080531,0.33959825,110690.0,110680.0,1.46604]
[1747979080759,0.33959825,110690.0,110680.0,1.12304]
[1747979080970,0.34059825,110690.0,110680.0,1.12304]
[1747979081205,0.34059825,110690.0,110680.0,1.46304]
[1747979081434,0.25105269,110690.0,110680.0,1.46404]
[1747979081665,0.25105269,110690.0,110680.0,1.46304]
[1747979083867,0.25105269,110690.0,110680.0,1.46312]
[1747979089815,0.25105269,110690.0,110680.0,1.46244]
[1747979094454,0.24201862,110690.0,110680.0,1.46244]
[1747979094750,0.25105269,110690.0,110680.0,1.46244]
[1747979100390,0.06133383,110690.0,110680.0,6.12623817]
[1747979100601,0.2281156,110700.0,110690.0,0.19875285]
[1747979100800,0.2281156,110700.0,110690.0,5.02184851]
[1747979100801,0.04743285,110700.0,110690.0,5.02184851]
[1747979101056,0.0654992,110700.0,110690.0,5.02184851]
[1747979101263,0.25520109,110700.0,110690.0,5.01281485]
[1747979101945,0.25520109,110700.0,110690.0,5.02184868]
[1747979102391,0.24520109,110700.0,110690.0,5.02184868]
[1747979102547,0.24720109,110700.0,110690.0,5.02184868]
[1747979102966,0.23816824,110700.0,110690.0,5.02184868]
[1747979103828,0.26276824,110700.0,110690.0,5.01281485]
[1747979104037,0.26276824,110700.0,110690.0,5.01281493]
[1747979104241,0.25373515,110700.0,110690.0,5.00378094]
[1747979104447,0.24470189,110700.0,110690.0,5.00378094]
[1747979106027,0.23566847,110700.0,110690.0,5.00378094]
[1747979106632,0.23566847,110700.0,110690.0,5.01281501]
[1747979106831,0.23566847,110700.0,110690.0,5.02184892]
[1747979107279,0.18466847,110700.0,110690.0,5.02184892]
[1747979107491,0.19370173,110700.0,110690.0,5.0399165]
[1747979107660,0.04013303,110700.0,110690.0,5.0399165]
[1747979107870,0.2208015,110700.0,110690.0,5.03088275]
[1747979108233,0.21176849,110700.0,110690.0,5.03088275]
[1747979108543,0.21176849,110700.0,110690.0,5.0399165]
[1747979108750,0.20976849,110700.0,110690.0,5.03088275]
[1747979108910,0.20776849,110700.0,110690.0,5.03088275]
[1747979110329,0.02710002,110700.0,110690.0,5.0399165]
[1747979110681,30.05077934,110710.0,110700.0,0.34]
[1747979110850,30.04394356,110710.0,110700.0,5.663583]
[1747979111053,30.01784365,110710.0,110700.0,5.663583]
[1747979111456,30.00881137,110710.0,110700.0,5.663583]
[1747979111663,30.02687601,110710.0,110700.0,5.663583]
[1747979111905,30.02887584,110710.0,110700.0,5.663583]
[1747979112057,30.01784348,110710.0,110700.0,5.663583]
[1747979112269,30.02887576,110710.0,110700.0,5.716466]
[1747979112512,30.01081129,110710.0,110700.0,5.716466]
[1747979112680,30.03790844,110710.0,110700.0,5.80601172]
[1747979112861,30.03590844,110710.0,110700.0,5.81504465]
[1747979113259,30.21656059,110710.0,110700.0,5.76214562]
[1747979113463,30.20752864,110710.0,110700.0,5.36024856]
[1747979113721,30.20752864,110710.0,110700.0,4.91554856]
[1747979114120,30.19849645,110710.0,110700.0,4.91554856]
[1747979114754,30.18946409,110710.0,110700.0,4.91554856]
[1747979116480,30.18346409,110710.0,110700.0,4.91554856]
[1747979117468,30.20866409,110710.0,110700.0,4.91554856]
[1747979118821,30.19249645,110710.0,110700.0,5.11428362]
[1747979119411,30.19249645,110710.0,110700.0,5.11428379]
[1747979119607,30.19249645,110710.0,110700.0,4.48156379]
[1747979119978,30.19249645,110710.0,110700.0,5.11420379]
[1747979122179,30.19249645,110710.0,110700.0,4.91546856]
[1747979122180,30.18346409,110710.0,110700.0,4.91546856]
[1747979122419,30.20746409,110710.0,110700.0,3.45676856]
[1747979122613,30.23226409,110710.0,110700.0,3.39810198]
[1747979122821,30.23226409,110710.0,110700.0,3.78786198]
[1747979123308,30.23226409,110710.0,110700.0,3.77882856]
[1747979123665,30.22626409,110710.0,110700.0,3.77810856]
[1747979123865,30.22626409,110710.0,110700.0,3.78714198]
[1747979126864,30.22626409,110710.0,110700.0,3.14618856]
[1747979127074,30.22626409,110710.0,110700.0,3.77810856]
[1747979127274,30.22626409,110710.0,110700.0,3.7600589]
[1747979127418,30.17746409,110710.0,110700.0,3.94072737]
[1747979128187,30.17746409,110710.0,110700.0,3.94976063]
[1747979128751,30.17507045,110710.0,110700.0,3.97316063]
[1747979128959,30.01248261,110710.0,110700.0,3.99122657]
[1747979129191,30.02151513,110710.0,110700.0,3.99122657]
[1747979130820,30.01248261,110710.0,110700.0,3.96782657]
[1747979131392,30.20216728,110710.0,110700.0,3.95879372]
[1747979131738,30.20216728,110710.0,110700.0,3.97685966]
[1747979131913,30.02151513,110710.0,110700.0,3.97685917]
[1747979132112,30.03054773,110710.0,110700.0,3.99490832]
[1747979132322,30.05454773,110710.0,110700.0,3.99490832]
[1747979132946,30.07774773,110710.0,110700.0,3.99490832]
[1747979134048,30.24936777,110710.0,110700.0,3.99490832]
[1747979134276,30.24936777,110710.0,110700.0,3.96782632]
[1747979136007,30.06871562,110710.0,110700.0,3.96782632]
[1747979136186,30.06871562,110710.0,110700.0,3.95879339]
[1747979136537,30.06871562,110710.0,110700.0,3.96782632]
[1747979137265,30.24936777,110710.0,110700.0,3.94976038]
[1747979137464,30.24033541,110710.0,110700.0,3.94976038]
[1747979137710,30.24033541,110710.0,110700.0,3.95879331]
[1747979137906,30.23130297,110710.0,110700.0,3.11910556]
[1747979138167,30.23130297,110710.0,110700.0,3.76001898]
[1747979138364,30.23130297,110710.0,110700.0,3.95875396]
[1747979138607,30.23130297,110710.0,110700.0,3.96778705]
[1747979138874,30.23130297,110710.0,110700.0,3.97682006]
[1747979140726,30.22530297,110710.0,110700.0,3.97682006]
[1747979141281,30.22530297,110710.0,110700.0,3.97681957]
[1747979141661,30.04465082,110710.0,110700.0,3.97681908]
[1747979142066,30.0446505,110710.0,110700.0,3.97681908]
[1747979145324,30.0446505,110710.0,110700.0,3.9587533]
[1747979145499,30.0446505,110710.0,110700.0,3.96778623]
[1747979145675,30.0446505,110710.0,110700.0,3.97681908]
[1747979146096,30.05368245,110710.0,110700.0,3.97681908]
[1747979149683,30.05368245,110710.0,110700.0,3.75302069]
[1747979149892,30.05368245,110710.0,110700.0,3.63681908]
[1747979151701,30.05368245,110710.0,110700.0,3.97681908]
[1747979152334,30.04465001,110710.0,110700.0,3.97681908]
[1747979152546,30.05368237,110710.0,110700.0,3.97681908]
[1747979152899,30.06271481,110710.0,110700.0,3.97681908]
[1747979154582,30.05368237,110710.0,110700.0,3.97681908]
[1747979159295,30.04464992,110710.0,110700.0,3.97681908]
[1747979160538,30.05368236,110710.0,110700.0,3.97681908]
[1747979161530,30.06271488,110710.0,110700.0,3.97681908]
[1747979161741,30.05368236,110710.0,110700.0,3.97681908]
[1747979162243,30.05368228,110710.0,110700.0,3.97681908]
[1747979162915,30.06271472,110710.0,110700.0,3.97681908]
[1747979163931,30.05368228,110710.0,110700.0,3.97681908]
[1747979164325,30.07174724,110710.0,110700.0,3.97681908]
[1747979164526,30.06271472,110710.0,110700.0,3.6880733]
[1747979164733,30.22530289,110710.0,110700.0,1.98834]
[1747979164934,30.22530289,110710.0,110700.0,1.35646]
[1747979165151,30.22530289,110710.0,110700.0,1.62714]
[1747979165510,30.22530289,110710.0,110700.0,1.9877]
[1747979165727,30.22530289,110710.0,110700.0,1.99673342]
[1747979165950,30.04465033,110710.0,110700.0,2.18643515]
[1747979166163,30.05368228,110710.0,110700.0,2.20450109]
[1747979166573,30.04464984,110710.0,110700.0,2.20450109]
[1747979166779,30.0536822,110710.0,110700.0,2.20450109]
[1747979167023,30.04464984,110710.0,110700.0,2.20450109]
[1747979167231,30.03561765,110710.0,110700.0,2.20450109]
[1747979167338,30.03561773,110710.0,110700.0,2.20450109]
[1747979168463,30.03561773,110710.0,110700.0,1.93382109]
[1747979168668,30.04464992,110710.0,110700.0,2.20450109]
[1747979169831,30.05368228,110710.0,110700.0,2.20450109]
[1747979170031,30.22530265,110710.0,110700.0,1.86226847]
[1747979170274,30.22530265,110710.0,110700.0,1.88033482]
[1747979170420,30.22530265,110710.0,110700.0,1.6816]
[1747979170625,30.22530265,110710.0,110700.0,1.12442847]
[1747979170845,30.21627029,110710.0,110700.0,1.575]
[1747979171041,30.21627029,110710.0,110700.0,1.01376]
[1747979171242,30.21627029,110710.0,110700.0,1.83470173]
[1747979171440,30.21627029,110710.0,110700.0,1.8437349]
[1747979171683,30.04465033,110710.0,110700.0,1.86180076]
[1747979171897,30.05368285,110710.0,110700.0,1.86180076]
[1747979172732,30.04768285,110710.0,110700.0,1.86180076]
[1747979173375,30.22833508,110710.0,110700.0,1.85276791]
[1747979174703,30.22833508,110710.0,110700.0,1.86180084]
[1747979176738,30.04768293,110710.0,110700.0,1.86180084]
[1747979177208,30.04768293,110710.0,110700.0,1.87083369]
[1747979178609,30.04768285,110710.0,110700.0,1.87083369]
[1747979179548,30.0205857,110710.0,110700.0,1.87083369]
[1747979180344,30.02961765,110710.0,110700.0,1.87083369]
[1747979182516,30.0205857,110710.0,110700.0,1.87083369]
[1747979182675,30.02961757,110710.0,110700.0,1.87083369]
[1747979184129,30.03864952,110710.0,110700.0,1.87083369]
[1747979184338,30.06574667,110710.0,110700.0,1.87083369]
[1747979184550,30.228335,110710.0,110700.0,1.65880173]
[1747979184735,30.0476822,110710.0,110700.0,1.67686767]
[1747979185140,30.05671472,110710.0,110700.0,1.67614775]
[1747979185357,30.06574732,110710.0,110700.0,1.67614775]
[1747979185559,30.0476822,110710.0,110700.0,1.6851806]
[1747979185854,30.05671464,110710.0,110700.0,1.6851806]
[1747979186655,30.06574716,110710.0,110700.0,1.6851806]
[1747979187675,30.05671464,110710.0,110700.0,1.6851806]
[1747979187876,30.05671464,110710.0,110700.0,1.67614775]
[1747979188082,30.23736679,110710.0,110700.0,1.66711482]
[1747979188287,30.06574716,110710.0,110700.0,1.67614775]
[1747979188527,30.05671464,110710.0,110700.0,1.6851806]
[1747979189174,30.22833525,110710.0,110700.0,1.54998181]
[1747979189368,30.22833525,110710.0,110700.0,1.55901507]
[1747979189597,30.22833525,110710.0,110700.0,1.57708133]
[1747979189928,30.21330289,110710.0,110700.0,1.36931342]
[1747979190125,30.21330289,110710.0,110700.0,1.37834676]
[1747979190254,30.21330289,110710.0,110700.0,1.55901523]
[1747979190452,30.20427045,110710.0,110700.0,0.72976]
[1747979190652,30.19523785,110710.0,110700.0,1.36931342]
[1747979190897,30.19523785,110710.0,110700.0,1.37834676]
[1747979191554,30.19523785,110710.0,110700.0,1.55901523]
[1747979191788,30.19523785,110710.0,110700.0,1.56804849]
[1747979192205,30.19523785,110710.0,110700.0,1.57708158]
[1747979193623,30.19523785,110710.0,110700.0,1.56804849]
[1747979194653,30.19523785,110710.0,110700.0,1.57708166]
[1747979197070,30.19523785,110710.0,110700.0,1.36931342]
[1747979197489,30.19523785,110710.0,110700.0,1.55901523]
[1747979197696,30.19523785,110710.0,110700.0,1.56804849]
[1747979198112,30.19523785,110710.0,110700.0,1.36028]
[1747979198320,30.19523785,110710.0,110700.0,0.38976]
[1747979198500,30.19523785,110710.0,110700.0,1.36028]
[1747979198963,30.28478341,110710.0,110700.0,1.0896]
[1747979199088,30.28478341,110710.0,110700.0,1.36028]
[1747979200358,30.28478341,110710.0,110700.0,1.36032]
[1747979200997,30.28478341,110710.0,110700.0,0.72976]
[1747979201315,30.28478341,110710.0,110700.0,1.36032]
[1747979202458,30.29678341,110710.0,110700.0,1.36032]
[1747979211948,30.29078341,110710.0,110700.0,1.36032]
[1747979212128,30.29078341,110710.0,110700.0,0.72976]
[1747979212441,30.29078341,110710.0,110700.0,1.36032]
[1747979213548,30.29078341,110710.0,110700.0,1.36036]
[1747979219160,30.20123785,110710.0,110700.0,1.36036]
[1747979219385,30.17803785,110710.0,110700.0,1.36036]
[1747979219597,30.15403785,110710.0,110700.0,1.36036]
[1747979219932,30.16306988,110710.0,110700.0,1.55909474]
[1747979220064,30.1721024,110710.0,110700.0,1.5820949]
[1747979220268,30.1721024,110710.0,110700.0,6.6320949]
[1747979220804,29.99145001,110710.0,110700.0,6.65016092]
[1747979221007,30.00951497,110710.0,110700.0,6.68309377]
[1747979221254,30.00951497,110710.0,110700.0,6.67406092]
[1747979221383,30.01854757,110710.0,110700.0,6.67406092]
[1747979221587,30.00048245,110710.0,110700.0,6.68309377]
[1747979221857,30.00951497,110710.0,110700.0,6.68309377]
[1747979222102,30.19016712,110710.0,110700.0,6.43336]
[1747979222330,30.17210281,110710.0,110700.0,6.41036]
[1747979222540,30.16307037,110710.0,110700.0,4.66526]
[1747979223122,30.15107037,110710.0,110700.0,4.66458]
[1747979223493,30.15107037,110710.0,110700.0,4.67361334]
[1747979223698,30.15107037,110710.0,110700.0,4.6826466]
[1747979223894,30.15107037,110710.0,110700.0,4.86331507]
[1747979224140,30.15107037,110710.0,110700.0,4.87234824]
[1747979225133,30.19727037,110710.0,110700.0,4.03466]
[1747979225333,30.19727037,110710.0,110700.0,1.35964]
[1747979228726,30.19727037,110710.0,110700.0,1.01964]
[1747979229284,30.28681593,110710.0,110700.0,0.38976]
[1747979229738,30.28681593,110710.0,110680.0,0.50388114]
[1747979229739,0.24825269,110690.0,110680.0,0.50388114]
[1747979229935,0.24825269,110690.0,110680.0,1.13376114]
[1747979230794,0.24825269,110690.0,110680.0,1.11964]
[1747979231074,0.24925269,110690.0,110680.0,1.12264]
[1747979232373,0.24925269,110690.0,110680.0,0.49276]
[1747979232576,0.24925269,110690.0,110680.0,1.12564]
[1747979236087,0.24925269,110690.0,110680.0,1.12572]
[1747979243575,0.24925269,110690.0,110680.0,1.46572]
[1747979246995,0.24925269,110690.0,110680.0,0.61786679]
[1747979248441,0.24925269,110690.0,110680.0,0.88858679]
[1747979252642,0.22485269,110690.0,110680.0,1.08735777]
[1747979252853,0.01003358,110690.0,110680.0,6.15542697]
[1747979253056,0.01906741,110690.0,110680.0,6.17892697]
[1747979253259,0.01003358,110690.0,110680.0,6.20352697]
[1747979253597,0.01003366,110690.0,110680.0,6.20352697]
[1747979253996,0.001,110690.0,110680.0,6.20352697]
[1747979254198,0.01003366,110690.0,110680.0,6.20352697]
[1747979254426,0.01003358,110690.0,110680.0,6.29307253]
[1747979254593,0.001,110690.0,110680.0,6.29307253]
[1747979255183,0.0100335,110690.0,110680.0,6.29307253]
[1747979255303,0.0100335,110690.0,110680.0,6.68291253]
[1747979255509,0.01906708,110690.0,110680.0,6.68291253]
[1747979256403,0.02810083,110690.0,110680.0,6.68291253]
[1747979257179,0.01906708,110690.0,110680.0,6.41219253]
[1747979257382,0.01906708,110690.0,110680.0,6.68291253]
[1747979257618,0.02810083,110690.0,110680.0,6.68291253]
[1747979259228,0.03713474,110690.0,110680.0,6.68291253]
[1747979259430,0.02810083,110690.0,110680.0,6.68291253]
[1747979261611,0.03713474,110690.0,110680.0,6.68291253]
[1747979261938,0.02810083,110690.0,110680.0,6.68291253]
[1747979262170,0.02810083,110690.0,110680.0,6.63481253]
[1747979263137,0.02810083,110690.0,110680.0,6.65911253]
[1747979264163,0.03713466,110690.0,110680.0,6.65911253]
[1747979264876,0.0100335,110690.0,110680.0,6.65911253]
[1747979265107,0.0100335,110690.0,110680.0,6.68321253]
[1747979265335,0.01906716,110690.0,110680.0,6.68321253]
[1747979265949,0.0100335,110690.0,110680.0,6.68321253]
[1747979266172,0.01906716,110690.0,110680.0,6.68321253]
[1747979266835,0.0100335,110690.0,110680.0,6.68321253]
[1747979267066,0.01906708,110690.0,110680.0,6.68321253]
[1747979267291,0.02810074,110690.0,110680.0,6.68321253]
[1747979267507,0.03713457,110690.0,110680.0,6.68321253]
[1747979267715,0.03713457,110690.0,110680.0,6.65911253]
[1747979268322,0.03713457,110690.0,110680.0,6.63481253]
[1747979268555,0.02810074,110690.0,110680.0,6.63481253]
[1747979268777,0.03713457,110690.0,110680.0,6.63481253]
[1747979270521,0.03713457,110690.0,110680.0,6.00553253]
[1747979270740,0.09276856,110690.0,110680.0,6.63477253]
[1747979270958,0.08373457,110690.0,110680.0,6.63477253]
[1747979271864,0.09276856,110690.0,110680.0,6.63477253]
[1747979272109,0.27345335,110690.0,110680.0,5.69914679]
[1747979272307,0.24635285,110690.0,110680.0,1.34114679]
[1747979272512,0.24635285,110690.0,110680.0,1.45828679]
[1747979272738,0.24635285,110690.0,110680.0,1.65705777]
[1747979272919,0.24635285,110690.0,110680.0,1.46732184]
[1747979273370,0.24635285,110690.0,110680.0,1.66609274]
[1747979273516,0.24635285,110690.0,110680.0,1.39537274]
[1747979273712,0.24635285,110690.0,110680.0,1.66609274]
[1747979275450,0.24635285,110690.0,110680.0,1.64428679]
[1747979275599,0.24635285,110690.0,110680.0,1.27838679]
[1747979275805,0.24635285,110690.0,110680.0,1.28742184]
[1747979276002,0.24635285,110690.0,110680.0,1.29645681]
[1747979276416,0.24635285,110690.0,110680.0,1.3054917]
[1747979276836,0.24635285,110690.0,110680.0,1.29645681]
[1747979277501,0.24635285,110690.0,110680.0,1.91068184]
[1747979277806,0.23731886,110690.0,110680.0,2.72901785]
[1747979279628,0.23731886,110690.0,110680.0,2.73805266]
[1747979280907,0.23731886,110690.0,110680.0,2.53928184]
[1747979281333,0.23731886,110690.0,110680.0,2.71998296]
[1747979281537,0.23731886,110690.0,110680.0,2.53024679]
[1747979281735,0.23731886,110690.0,110680.0,2.53928184]
[1747979282361,0.23731886,110690.0,110680.0,2.37694679]
[1747979282605,0.23731886,110690.0,110680.0,0.64914679]
[1747979282820,0.23731886,110690.0,110680.0,1.27774679]
[1747979283029,0.32686442,110690.0,110680.0,1.27774679]
[1747979283230,0.32686442,110690.0,110680.0,0.38984]
[1747979283437,0.32686442,110690.0,110680.0,0.74772]
[1747979283642,0.32686442,110690.0,110680.0,1.35844]
[1747979284183,0.32586442,110690.0,110680.0,1.35844]
[1747979284624,0.32586442,110690.0,110680.0,1.35944]
[1747979284988,0.32586442,110690.0,110680.0,1.35844]
[1747979285414,0.32686442,110690.0,110680.0,1.35844]
[1747979285791,0.32886442,110690.0,110680.0,1.35844]
[1747979287807,0.32786442,110690.0,110680.0,1.35844]
[1747979288017,0.32586442,110690.0,110680.0,1.35844]
[1747979288402,0.32986442,110690.0,110680.0,1.36044]
[1747979288608,0.32986442,110690.0,110680.0,1.08972]
[1747979288822,0.34186442,110690.0,110680.0,0.74972]
[1747979289022,0.34186442,110690.0,110680.0,1.02044]
[1747979289454,0.34186442,110690.0,110680.0,0.74972]
[1747979289649,0.34186442,110690.0,110680.0,1.02044]
[1747979290285,0.34186442,110690.0,110680.0,0.74972]
[1747979290286,0.35640527,110690.0,110680.0,0.74972]
[1747979290490,0.35640527,110690.0,110680.0,1.02048]
[1747979291680,0.35640527,110690.0,110680.0,0.6626]
[1747979293786,0.34440527,110690.0,110680.0,0.6626]
[1747979294197,0.39691267,110690.0,110680.0,0.002]
[1747979294419,0.39791267,110690.0,110680.0,0.002]
[1747979294661,0.57736613,110690.0,110680.0,0.002]
[1747979294876,0.2240886,110670.0,110660.0,0.002]
[1747979295097,0.2240886,110670.0,110660.0,0.27276]
[1747979295098,0.33723416,110670.0,110660.0,0.27276]
[1747979295313,0.35177501,110670.0,110660.0,0.63072]
[1747979296175,0.35577501,110670.0,110660.0,0.63177116]
[1747979296629,0.35577501,110670.0,110660.0,0.63185116]
[1747979297271,0.34123416,110670.0,110660.0,0.63185116]
[1747979297478,0.34423416,110670.0,110660.0,0.63185116]
[1747979303247,0.34423416,110670.0,110660.0,0.00305116]
[1747979303562,0.34423416,110670.0,110660.0,0.63193116]
[1747979304598,0.34423416,110670.0,110660.0,0.97193116]
[1747979305260,0.2057886,110670.0,110660.0,1.02153116]
[1747979305875,0.2057886,110670.0,110660.0,0.68153116]
[1747979306713,0.2057886,110670.0,110660.0,0.87130153]
[1747979306958,0.2057886,110670.0,110660.0,5.93033805]
[1747979307590,0.2057886,110670.0,110660.0,6.26130153]
[1747979307946,0.2017886,110670.0,110660.0,6.07956776]
[1747979308157,0.1987886,110670.0,110660.0,6.07956776]
[1747979308383,0.18975314,110670.0,110660.0,5.96633116]
[1747979308622,0.19175314,110670.0,110660.0,5.96733116]
[1747979308802,0.19375314,110670.0,110660.0,2.13913116]
[1747979309029,0.19375314,110670.0,110660.0,0.84069116]
[1747979309208,0.19375314,110670.0,110660.0,1.08703116]